[Event "21st Bangkok CC Open 2024"]
[Site "Bangkok"]
[Date "2024.04.19"]
[Round "4.1"]
[White "Chernyavsky, Alexander"]
[Black "Das, Sayantan"]
[Result "1-0"]
[ECO "D35"]
[WhiteElo "2354"]
[BlackElo "2507"]
[Annotator "TA"]
[PlyCount "91"]
[EventDate "2024.04.13"]
[EventType "swiss"]
[EventCountry "THA"]
[SourceTitle "playchess.com"]
[Source "ChessBase"]
[SourceQuality "1"]
[TimeControl "40/5400+30:1800+30"]

{[%evp 12,91,31,35,37,31,32,28,41,6,51,14,55,-26,-28,-20,-5,-39,-16,-34,-56,-47,-56,-48,-48,-43,-62,-45,-47,-40,75,106,100,106,99,104,80,91,94,74,103,90,244,255,295,279,281,229,237,227,238,220,231,180,195,139,141,8,283,308,510,512,504,473,470,450,450,452,550,620,1861,1428,1637,1535,1932,883,854,861,3039,2641,2703,2466]} 1. d4 {[%emt 0:09:05]} d5 {[%emt 0:00:30]} 2. c4 {[%emt 0:00:12]} e6 {[%emt 0:00:07]} 3. Nc3 {[%emt 0:00:07]} Nf6 {[%emt 0:00:16]} 4. cxd5 {[%emt 0:00:09]} exd5 {[%emt 0:00:08]} 5. Bg5 {[%emt 0:00:03]} Bb4 {[%emt 0:00:17]} 6. e3 {[%emt 0:00:23]} h6 {[%emt 0:00:08]} 7. Bh4 {[%emt 0:01:00]} g5 {[%emt 0:00:18]} 8. Bg3 {[%emt 0:00:04]} Ne4 {[%emt 0:00:05]} 9. Nge2 {[%emt 0:00:19]} h5 {[%emt 0:00:34] White has an edge.} 10. h4 {[%emt 0:01:06]} Bg4 {[%emt 0:01:07]} 11. Qb3 {[%emt 0:15:40]} Nc6 {[%emt 0:12:22]} 12. Be5 {[%emt 0:10:06]} (12. Bh2 $1 $14 Bxe2 13. Bxe2) 12... Nxe5 $11 {[%emt 0:23:09]} 13. dxe5 {[%emt 0:00:17]} Qe7 {[%emt 0:04:42]} 14. Qxd5 {[%emt 0:09:48]} Nc5 {[%emt 0:10:06] ...Rd8 would now be deadly.} 15. Nd4 {[%emt 0:05:26]} c6 {[%emt 0:12:14]} 16. Nxc6 {[%emt 0:03:44]} bxc6 {[%emt 0:00:40]} 17. Qxc6+ {[%emt 0:00:05]} Kf8 {[%emt 0:01:15]} 18. Qxa8+ {[%emt 0:05:48]} Kg7 {[%emt 0:00:03]} 19. Qc6 {[%emt 0:02:13] Qd6 is the strong threat.} Qxe5 {[%emt 0:04:45]} 20. Rc1 {[%emt 0:00:18]} Rb8 {[%emt 0:18:10]} (20... Rc8 $15 {stays ahead.} 21. Qb5 Rb8) 21. Bc4 $1 $16 {[%emt 0:13:33]} Rc8 {[%emt 0:02:40]} 22. Qd5 {[%emt 0:01:51]} Qxd5 {[%emt 0:00:42]} 23. Bxd5 {[%emt 0:00:04] Strongly threatening a3.} Nd3+ {[%emt 0:00:05]} 24. Kd2 {[%emt 0:00:03]} Nxb2 {[%emt 0:00:11] Threatens to win with ...Na4.} 25. f3 {[%emt 0:05:07]} (25. hxg5 Na4 26. f3 Nxc3 $17 (26... Bxc3+ 27. Ke2 $16)) 25... Bd7 {[%emt 0:02:59] [#] White must now prevent ...Na4. A strong pair of Bishops.} 26. Bb3 {[%emt 0:00:37]} (26. hxg5 $6 Na4 27. Rh4 Bxc3+ 28. Ke2 Bb5+ 29. Kf2 Rc5 $11) 26... Bb5 $2 {[%emt 0:01:48]} (26... g4 $16) 27. hxg5 $18 {[%emt 0:01:12]} Nd3 {[%emt 0:01:21]} 28. Rc2 {[%emt 0:00:07]} Rd8 {[%emt 0:01:21]} 29. Rh4 {[%emt 0:03:02][%cal Oh4d4]} ({And not} 29. Rxh5 Nf4+ 30. Kc1 Ba3+ (30... Nxh5 $2 31. Nxb5 Rd7 32. Nd4 $18) 31. Rb2 (31. Kb1 $2 Nxh5 32. Ka1 Bd3 $19) 31... Bxb2+ 32. Kxb2 Nxh5 33. Nxb5 Rd2+ 34. Kc3 Rxg2 $14) 29... Nf4+ {[%emt 0:01:55]} 30. Kc1 {[%emt 0:00:10]} Ba3+ {[%emt 0:00:49]} 31. Kb1 {[%emt 0:00:04]} Ng6 {[%emt 0:00:33]} 32. Rxh5 {[%emt 0:01:20] aiming for Bxf7.} (32. Nxb5 $2 {is a self mate.} Rd1+) 32... Bd3 {[%emt 0:00:18] [#]} 33. f4 {[%emt 0:01:15]} Rc8 $16 {[%emt 0:00:32]} 34. Nd5 {[%emt 0:00:18]} ({White should try} 34. Nd1 $16) 34... Rc5 $2 {[%emt 0:00:48][%mdl 8192]} (34... a5 $11) 35. Nf6 $1 $18 {[%emt 0:00:25]} Ne7 $2 {[%emt 0:00:25] [#]} (35... Nf8 36. e4 Ne6) 36. e4 $1 {[%emt 0:01:39] Rh7+ would kill now. White is clearly winning.} Bxc2+ {[%emt 0:00:22]} 37. Bxc2 {[%emt 0:00:03]} Ng6 {[%emt 0:00:25]} 38. Rh7+ {[%emt 0:04:34]} Kf8 {[%emt 0:00:02]} 39. g3 {[%emt 0:02:36][%cal Bg2g3,Bg3g4][%mdl 32]} Rc3 {[%emt 0:00:52]} 40. f5 {[%emt 0:01:31]} Ne7 {[%emt 0:00:36]} 41. Rh8+ {[%emt 0:33:10]} Kg7 {[%emt 0:30:01]} 42. Rh1 {[%emt 0:00:24]} Kf8 {[%emt 0:00:00]} 43. Bb3 {[%emt 0:00:00] And now Rh8+ would win.} Ng8 {[%emt 0:00:00]} 44. g4 {[%emt 0:00:00]} Nxf6 {[%emt 0:00:00]} 45. gxf6 {[%emt 0:00:00][%cal Rh1h8]} Ke8 {[%emt 0:00:00]} 46. Rd1 {[%emt 0:00:00] Weighted Error Value: White=0.18 (very precise) /Black=0.33.  Loses game:     	---       	Black=1      Mistake:       	White=3     	Black=3      Inaccurate:     	---       	Black=1      OK:         	White=12    	Black=16     Best:        	White=7     	Black=8      Strong:       	White=2     	---} 1-0

[Event "21st Bangkok CC Open 2024"]
[Site "Bangkok"]
[Date "2024.04.19"]
[Round "4.2"]
[White "Srihari L R"]
[Black "Manon, Reja Neer"]
[Result "1/2-1/2"]
[ECO "E65"]
[WhiteElo "2482"]
[BlackElo "2285"]
[Annotator "TA"]
[PlyCount "56"]
[EventDate "2024.04.13"]
[EventType "swiss"]
[EventCountry "THA"]
[SourceTitle "playchess.com"]
[Source "ChessBase"]
[SourceQuality "1"]
[TimeControl "40/5400+30:1800+30"]

{[%evp 19,56,18,19,17,12,11,41,49,47,35,52,56,60,45,47,42,57,50,51,37,39,0,6,-125,-17,-14,-15,-35,-21,-75,-19,-22,0,0,0,0,-5,-2,0]} 1. c4 {[%emt 0:00:30]} Nf6 {[%emt 0:00:14]} 2. Nf3 {[%emt 0:00:25]} g6 {[%emt 0:01:08]} 3. Nc3 {[%emt 0:01:01]} Bg7 {[%emt 0:00:08]} 4. g3 {[%emt 0:00:06]} O-O {[%emt 0:00:15]} 5. Bg2 {[%emt 0:00:05]} d6 {[%emt 0:00:12]} 6. d4 {[%emt 0:00:07]} c5 {[%emt 0:00:04]} 7. O-O {[%emt 0:03:20]} Nc6 {[%emt 0:02:58]} 8. dxc5 {[%emt 0:00:28]} dxc5 {[%emt 0:00:20]} 9. Bf4 {[%emt 0:00:07][%cal Bc1f4,Bf4e5,Be5c7][%mdl 32]} Nd4 {[%emt 0:38:07]} 10. Be5 {[%emt 0:21:50]} Nc6 {[%emt 0:09:22]} 11. Qxd8 {[%emt 0:11:22]} Rxd8 {[%emt 0:00:12]} 12. Bc7 {[%emt 0:00:06]} Re8 {[%emt 0:09:40]} 13. Ne5 {[%emt 0:07:42] White is slightly better.} Nd4 {[%emt 0:04:30]} 14. Nd3 {[%emt 0:01:28]} Ne6 {[%emt 0:07:06]} 15. Be5 {[%emt 0:00:42]} Nd7 {[%emt 0:00:00]} 16. Bxg7 {[%emt 0:01:30]} Kxg7 {[%emt 0:00:02]} 17. Rfd1 {[%emt 0:09:24]} Rb8 {[%emt 0:02:26]} 18. e3 {[%emt 0:11:04]} b6 {[%emt 0:02:15]} 19. Bc6 {[%emt 0:02:37]} Rd8 {[%emt 0:03:33]} 20. Nd5 {[%emt 0:02:25]} Kf8 {[%emt 0:01:15]} 21. Rd2 {[%emt 0:04:29]} (21. b3 $11) 21... Ba6 {[%emt 0:02:47]} (21... Ng5 $17 {Threatens to win with ...Nf3+.} 22. Kg2 Ba6) 22. b3 $11 {[%emt 0:04:40]} Rbc8 {[%emt 0:01:12]} 23. Ba4 {[%emt 0:02:53]} Ng5 {[%emt 0:08:01] ...Nf3+ would now be deadly.} 24. Rdd1 {[%emt 0:04:01] [#]} (24. Bxd7 $1 $11 {remains equal.} Rxd7 (24... Nf3+ $2 25. Kg2 $19) 25. Rdd1 (25. Ne5 Rd6 $17)) 24... Bb7 {[%emt 0:01:22]} (24... Nf6 $1 $17 {[%cal Rf6d5]} 25. Nxf6 exf6) 25. f4 {[%emt 0:04:48] The position is equal.} Ne4 {[%emt 0:01:24]} 26. Bxd7 {[%emt 0:02:28]} Rxd7 {[%emt 0:00:13]} 27. Nf2 $1 {[%emt 0:00:04]} Nxf2 {[%emt 0:02:58]} 28. Kxf2 {[%emt 0:00:01]} Bxd5 {[%emt 0:01:25] Weighted Error Value: White=0.21 (precise) /Black=0.24 (precise) .  Mistake:       	White=2     	Black=2      Inaccurate:     	White=1     	Black=1      OK:         	White=7     	Black=7      Strong:       	White=1     	---} 1/2-1/2

[Event "21st Bangkok CC Open 2024"]
[Site "Bangkok"]
[Date "2024.04.19"]
[Round "4.3"]
[White "Subhayan Kundu"]
[Black "Nie, Xinyang"]
[Result "1/2-1/2"]
[ECO "C42"]
[WhiteElo "2341"]
[BlackElo "2433"]
[Annotator "TA"]
[PlyCount "41"]
[EventDate "2024.04.13"]
[EventType "swiss"]
[EventCountry "THA"]
[SourceTitle "playchess.com"]
[Source "ChessBase"]
[SourceQuality "1"]
[TimeControl "40/5400+30:1800+30"]

{[%evp 16,41,41,45,40,34,39,19,31,31,27,25,36,22,38,40,38,37,54,49,52,35,30,19,28,19,38,38]} 1. e4 {[%emt 0:03:10]} e5 {[%emt 0:00:03]} 2. Nf3 {[%emt 0:00:31]} Nf6 {[%emt 0:00:04][%cal Bg8f6,Bf6e4,Be4d2][%mdl 32]} 3. Nxe5 {[%emt 0:01:37]} d6 {[%emt 0:00:23]} 4. Nf3 {[%emt 0:00:18]} Nxe4 {[%emt 0:00:03]} 5. d4 {[%emt 0:00:22]} d5 {[%emt 0:00:04]} 6. Bd3 {[%emt 0:00:21]} Be7 {[%emt 0:00:03]} 7. Nbd2 {[%emt 0:07:16]} Bf5 {[%emt 0:00:19]} 8. O-O {[%emt 0:00:28]} Nc6 {[%emt 0:01:31]} 9. Re1 {[%emt 0:00:24]} Nxd2 {[%emt 0:02:25]} 10. Qxd2 {[%emt 0:02:11]} ({Much weaker is} 10. Bxf5 Nxf3+ 11. gxf3 (11. Qxf3 Nxd4 12. Qh3 Nxf5 $17) 11... O-O $11) 10... Bg6 {[%emt 0:00:03]} 11. c3 {[%emt 0:02:04]} O-O {[%emt 0:00:09] The position is equal.} 12. Bxg6 {[%emt 0:03:13]} hxg6 {[%emt 0:00:17]} 13. Qd3 {[%emt 0:02:31]} a6 {[%emt 0:02:30]} 14. g3 {[%emt 0:13:32]} Qd7 {[%emt 0:00:22]} 15. Bf4 {[%emt 0:02:03]} Rae8 {[%emt 0:00:17]} 16. Kg2 {[%emt 0:01:27]} Bd6 {[%emt 0:00:33]} 17. Bxd6 {[%emt 0:00:44]} Qxd6 {[%emt 0:00:04]} 18. Rxe8 {[%emt 0:01:29]} Rxe8 {[%emt 0:00:06]} 19. Re1 {[%emt 0:00:15]} Rxe1 {[%emt 0:00:05]} 20. Nxe1 {[%emt 0:00:03]} Qe6 {[%emt 0:00:57]} 21. Qe3 {[%emt 0:00:15] Weighted Error Value: White=0.06 (flawless) /Black=0.06 (flawless) .  OK:         	White=4     	Black=4} 1/2-1/2

[Event "21st Bangkok CC Open 2024"]
[Site "Bangkok"]
[Date "2024.04.19"]
[Round "4.4"]
[White "Cao, Qingfeng"]
[Black "Deepan Chakkravarthy J."]
[Result "1-0"]
[ECO "E66"]
[WhiteElo "2038"]
[BlackElo "2428"]
[Annotator "TA"]
[PlyCount "65"]
[EventDate "2024.04.13"]
[EventType "swiss"]
[EventCountry "THA"]
[SourceTitle "playchess.com"]
[Source "ChessBase"]
[SourceQuality "1"]
[TimeControl "40/5400+30:1800+30"]

{[%evp 27,65,36,27,23,27,24,72,65,79,77,87,91,207,182,228,209,190,111,385,362,393,434,516,547,549,540,545,539,543,462,824,666,1381,1395,1269,1061,1164,1152,2971,2772]} 1. d4 {[%emt 0:00:03]} Nf6 {[%emt 0:09:42]} 2. c4 {[%emt 0:00:15]} g6 {[%emt 0:00:52]} 3. Nf3 {[%emt 0:00:22]} Bg7 {[%emt 0:00:10]} 4. g3 {[%emt 0:00:13]} c5 {[%emt 0:01:35]} 5. Bg2 {[%emt 0:04:49]} O-O {[%emt 0:00:25]} 6. O-O {[%emt 0:00:18]} d6 {[%emt 0:00:04]} 7. Nc3 {[%emt 0:01:19]} Nc6 {[%emt 0:08:28]} 8. d5 {[%emt 0:01:44]} Na5 {[%emt 0:00:49]} 9. Nd2 {[%emt 0:00:33]} a6 {[%emt 0:00:05]} 10. Rb1 {[%emt 0:01:18]} Rb8 {[%emt 0:00:16]} 11. b3 {[%emt 0:01:42]} b5 {[%emt 0:00:07]} 12. Qc2 {[%emt 0:00:23]} Bf5 {[%emt 0:00:23]} 13. e4 {[%emt 0:00:47]} Bd7 {[%emt 0:00:02]} 14. Bb2 {[%emt 0:04:33]} e5 {[%emt 0:09:50]} 15. Nd1 {[%emt 0:09:09]} h5 {[%emt 0:09:02]} 16. f4 {[%emt 0:06:12]} Ng4 {[%emt 0:00:14]} (16... exf4 $11 17. gxf4 bxc4) 17. h3 $16 {[%emt 0:05:19] White is better.} Nh6 {[%emt 0:00:02]} 18. f5 {[%emt 0:02:10]} bxc4 {[%emt 0:13:06]} 19. bxc4 {[%emt 0:01:41]} gxf5 {[%emt 0:00:25]} (19... Kh8 $16 {might work better.}) 20. exf5 $18 {[%emt 0:00:24][%cal Be4f5,Bf5f6][%mdl 32]} Qg5 {[%emt 0:00:05] [#]} (20... Nxf5 {was worth a try.} 21. Rxf5 Bxf5 22. Qxf5 Qf6 23. Qxh5 Qh6) 21. f6 $1 {[%emt 0:06:55][%mdl 512]} Bh8 {[%emt 0:08:33]} (21... Bf5 22. Ne4) 22. Qc3 {[%emt 0:07:47]} (22. Ne4 Qg6 23. Ne3 Nf5 24. Rxf5 Bxf5 $18) (22. Bc3 $18 Bf5 23. Ne4 Nxc4 24. Rxb8 Rxb8 25. Qd3 (25. Qe2 Bxe4 26. Bxe4 Qxg3+ 27. Bg2 Nb6 $18)) 22... Rb4 {[%emt 0:09:01][%mdl 8192] This move loses the game for Black.} (22... Bf5 $16) 23. a3 {[%emt 0:05:54]} Ra4 {[%emt 0:00:14]} 24. Bc1 {[%emt 0:03:08]} (24. Ne4 Qg6 25. Nxd6 (25. Ne3 Bxh3 26. Nxd6 Bxg2 $18) 25... Nf5 $18) 24... Qg6 {[%emt 0:00:05] White is clearly winning.} 25. Nb2 {[%emt 0:02:25]} Nf5 {[%emt 0:07:56]} 26. Nxa4 {[%emt 0:03:38]} Nxg3 {[%emt 0:00:05]} 27. Rf2 {[%emt 0:01:14] Against Ne2+} Bxf6 {[%emt 0:01:38]} 28. Rb6 {[%emt 0:04:08]} Bh4 {[%emt 0:03:26]} (28... Bd8 $142 29. Rxd6 (29. Qxa5 Bxa4 30. Qxa6 Bxb6 $18) 29... Qxd6 30. Qxg3+ Qg6) 29. Nf3 {[%emt 0:05:54]} Qf6 {[%emt 0:07:54] [#] Strongly threatening ...Ne4.} 30. Nxh4 {[%emt 0:06:57]} Qxh4 {[%emt 0:00:02]} 31. Qxa5 {[%emt 0:00:44]} Bxh3 {[%emt 0:00:22]} 32. Rb3 {[%emt 0:01:10]} ({Stronger than} 32. Qxa6 Bxg2 33. Rxg2 (33. Kxg2 $2 {too greedy.} Kh8 $19) 33... Kh7 34. Rxd6 Qh1+ 35. Kf2 Qf1+ 36. Kxg3 Rg8+ $11) 32... f5 {[%emt 0:00:10]} 33. Bxh3 {[%emt 0:02:42] Weighted Error Value: White=0.31/Black=0.53.  Loses game:     	---       	Black=1      Mistake:       	White=1     	Black=4      Inaccurate:     	---       	Black=1      OK:         	White=6     	Black=4      Brilliant:      	White=1     	---} 1-0

[Event "21st Bangkok CC Open 2024"]
[Site "Bangkok"]
[Date "2024.04.19"]
[Round "4.5"]
[White "Shahar, Uzair"]
[Black "Pham Tran Gia Phuc"]
[Result "0-1"]
[ECO "B91"]
[WhiteElo "2035"]
[BlackElo "2423"]
[Annotator "TA"]
[PlyCount "72"]
[EventDate "2024.04.13"]
[EventType "swiss"]
[EventCountry "THA"]
[SourceTitle "playchess.com"]
[Source "ChessBase"]
[SourceQuality "1"]
[TimeControl "40/5400+30:1800+30"]

{[%evp 13,72,23,39,-7,-2,-12,-20,-24,-8,-33,-21,-17,-15,-26,-12,-22,-18,-28,0,-14,0,0,0,13,8,-49,-27,-64,-31,-91,-80,-94,-94,-99,-102,-69,0,-15,-23,-36,0,-2,0,-158,-183,-182,-175,-178,-166,-146,0,-147,0,-74,-74,-63,-66,-206,-205,-1099,-1090]} 1. e4 {[%emt 0:00:05]} c5 {[%emt 0:00:10]} 2. Nf3 {[%emt 0:00:21]} d6 {[%emt 0:00:16]} 3. d4 {[%emt 0:00:19]} cxd4 {[%emt 0:00:08]} 4. Nxd4 {[%emt 0:00:09]} Nf6 {[%emt 0:00:07]} 5. Nc3 {[%emt 0:00:18]} a6 {[%emt 0:00:07]} 6. g3 {[%emt 0:01:20]} e5 {[%emt 0:01:01]} 7. Nb3 {[%emt 0:00:42]} Be6 {[%emt 0:00:13]} 8. Bg5 {[%emt 0:01:34]} (8. f4 $14) 8... Nbd7 $11 {[%emt 0:00:21]} 9. Qd3 {[%emt 0:06:38]} h6 {[%emt 0:01:42]} 10. Bxf6 {[%emt 0:00:41] The position is equal.} Nxf6 {[%emt 0:00:13]} 11. O-O-O {[%emt 0:00:45]} Be7 {[%emt 0:13:34]} 12. f4 {[%emt 0:02:55]} Rc8 {[%emt 0:01:13]} 13. f5 {[%emt 0:05:25]} Bd7 {[%emt 0:00:55]} 14. Kb1 {[%emt 0:07:37]} b5 {[%emt 0:05:56]} 15. Nd5 {[%emt 0:07:52]} Bc6 {[%emt 0:12:45]} 16. Qf3 {[%emt 0:06:24]} a5 {[%emt 0:08:59]} 17. Nd2 {[%emt 0:06:05]} Rb8 {[%emt 0:11:33]} 18. Nxf6+ {[%emt 0:17:28]} Bxf6 {[%emt 0:00:33]} 19. c4 {[%emt 0:03:27]} ({White should try} 19. Bg2 $11) 19... b4 {[%emt 0:08:50]} 20. Qd3 {[%emt 0:02:12]} a4 {[%emt 0:02:42]} 21. Nf3 {[%emt 0:03:17]} ({Better is} 21. Bg2 $15) 21... Qb6 $17 {[%emt 0:03:20]} 22. g4 {[%emt 0:00:53]} Qb7 {[%emt 0:02:18]} 23. Re1 {[%emt 0:00:38][%cal Of1g2]} b3 {[%emt 0:07:58] ( -> ...bxa2+)} 24. a3 {[%emt 0:00:20]} O-O $40 {[%emt 0:00:08][%mdl 128] White needs to defend precisely.} (24... Bd8 $15) 25. h4 $11 {[%emt 0:01:30][%cal Og4g5]} Bd8 {[%emt 0:00:05]} 26. g5 {[%emt 0:00:56] Black must now prevent gxh6.} Ba5 {[%emt 0:00:14]} 27. Re2 {[%emt 0:01:11] Threatens to win with gxh6.} h5 {[%emt 0:00:14]} 28. g6 $2 {[%emt 0:01:25]} (28. Bh3 $11) 28... fxg6 $17 {[%emt 0:11:04]} 29. fxg6 {[%emt 0:00:32][%cal Of1h3]} Rf6 $1 {[%emt 0:00:09]} 30. Ng5 {[%emt 0:02:57]} Rxg6 {[%emt 0:00:20]} 31. Bh3 {[%emt 0:00:20] [#]} Re8 {[%emt 0:05:07] Repels Be6+} (31... Rf6 $1 $17 {aiming for ...Kh8.} 32. Re3 Rbf8 33. Be6+ Kh8) 32. Qf3 {[%emt 0:09:36]} (32. Rf1 $11) 32... Qe7 {[%emt 0:01:05]} (32... Rf8 $17 33. Qxh5 Rh6 34. Be6+ Kh8) 33. Qxh5 {[%emt 0:01:30]} (33. Rf2 $11) 33... Rh6 {[%emt 0:00:08]} 34. Qf3 {[%emt 0:01:40]} Rf8 {[%emt 0:00:43] Active counter play!} (34... Rxh4 $2 {is the wrong capture.} 35. Be6+ $18) 35. Qg2 {[%emt 0:02:15] [#]} (35. Bf5 $15) 35... Bb6 $1 $19 {[%emt 0:00:10]} (35... Rxh4 $2 {perishes.} 36. Be6+ $18) 36. Bf5 $2 {[%emt 0:00:51]} (36. Qg3) 36... Rxf5 {[%emt 0:00:12] Weighted Error Value: White=0.49/Black=0.25 (precise) .  Mistake:       	White=7     	Black=3      Inaccurate:     	White=1     	Black=3      OK:         	White=12    	Black=8      Best:        	---       	Black=4      Strong:       	---       	Black=1} 0-1

[Event "21st Bangkok CC Open 2024"]
[Site "Bangkok"]
[Date "2024.04.19"]
[Round "4.6"]
[White "Sek, Konstantin"]
[Black "Dinh Nho Kiet"]
[Result "0-1"]
[ECO "B12"]
[WhiteElo "2397"]
[BlackElo "2245"]
[Annotator "TA"]
[PlyCount "74"]
[EventDate "2024.04.13"]
[EventType "swiss"]
[EventCountry "THA"]
[SourceTitle "playchess.com"]
[Source "ChessBase"]
[SourceQuality "1"]
[TimeControl "40/5400+30:1800+30"]

{[%evp 11,73,9,16,0,0,0,0,-20,-17,-20,-24,-56,-52,-101,-103,-104,-105,-109,-97,-95,-97,-248,-235,-263,-255,-267,-285,-318,-318,-437,-450,-455,-446,-449,-444,-425,-411,-556,-554,-545,-507,-516,-500,-511,-516,-568,-572,-558,-567,-579,-585,-693,-675,-684,-676,-877,-752,-791,-783,-822,-824,-1189,-1157,-1563]} 1. e4 {[%emt 0:12:56]} c6 {[%emt 0:00:49]} 2. d4 {[%emt 0:00:09]} d5 {[%emt 0:00:14]} 3. e5 {[%emt 0:00:06]} Bf5 {[%emt 0:00:14]} 4. h4 {[%emt 0:00:16]} h5 {[%emt 0:00:16]} 5. Bd3 {[%emt 0:00:12]} Bxd3 {[%emt 0:00:15]} 6. Qxd3 {[%emt 0:00:07]} e6 {[%emt 0:00:05]} 7. Bg5 {[%emt 0:00:35]} Qb6 {[%emt 0:05:26]} 8. Nd2 {[%emt 0:00:11]} c5 {[%emt 0:00:26]} 9. c4 {[%emt 0:12:57] The position is equal.} Qxb2 {[%emt 0:01:11]} 10. Rb1 {[%emt 0:00:24]} Qxd4 {[%emt 0:00:07]} 11. Qe2 {[%emt 0:02:08] [#] Strongly threatening Ngf3.} b6 $1 {[%emt 0:27:37] Hoping for ...Be7.} 12. cxd5 {[%emt 0:14:00]} (12. Ngf3 $15 {feels stronger.} Qg4 13. Qd3) 12... Qxd5 $17 {[%emt 0:06:50]} 13. Ngf3 {[%emt 0:01:03]} Ne7 {[%emt 0:06:18]} (13... Qxa2 14. O-O Be7 15. Rfd1 $18) 14. O-O {[%emt 0:21:39] aiming for Ne4.} Nf5 {[%emt 0:11:13][%cal Of5d4]} (14... Qxa2 $2 15. Qb5+ Nec6 16. Ra1 $18 (16. Nc4 $2 Qa6 $17)) 15. Nb3 {[%emt 0:16:52]} Nc6 {[%emt 0:01:54]} 16. Qa6 $2 {[%emt 0:00:32] [#]} (16. Rfd1 $17 Nfd4 17. Nfxd4 cxd4 18. Rbc1) 16... Nb4 $19 {[%emt 0:02:38]} (16... Nxe5 $2 17. Nxe5 Be7 18. Qa4+ Kf8 19. Nd7+ (19. Bxe7+ Nxe7 20. Rfe1 Qd8 $18) 19... Kg8 20. Rfd1 $18) 17. Qb5+ {[%emt 0:01:30]} Qd7 {[%emt 0:01:30]} 18. Qe2 {[%emt 0:01:22]} Qd3 {[%emt 0:01:43]} 19. Qe1 {[%emt 0:00:11]} c4 {[%emt 0:06:19]} ({Not} 19... Nxa2 20. Rd1 Qc2 (20... Qxb3 $2 {perishes.} 21. Qe4 $18) 21. Rd2 $14) 20. Nbd4 {[%emt 0:00:40]} Nxd4 {[%emt 0:00:47]} 21. Nxd4 {[%emt 0:00:02]} Qxd4 {[%emt 0:00:30]} 22. Rxb4 {[%emt 0:00:02]} Bxb4 {[%emt 0:00:10]} 23. Qxb4 {[%emt 0:00:01]} Qc5 {[%emt 0:00:10]} ({Stronger than} 23... Qxe5 24. Qe7#) 24. Qc3 {[%emt 0:00:07]} O-O {[%emt 0:13:24] Black is clearly winning.} 25. Rd1 {[%emt 0:00:49]} Qc6 {[%emt 0:00:26]} 26. Rd4 {[%emt 0:00:43]} Qb5 {[%emt 0:01:08]} 27. Rxc4 {[%emt 0:01:21]} Qb1+ {[%emt 0:02:27]} 28. Kh2 {[%emt 0:00:01]} Qxa2 {[%emt 0:01:30]} 29. Rf4 {[%emt 0:00:36]} Rac8 {[%emt 0:01:04]} 30. Qg3 {[%emt 0:00:44]} Qc2 {[%emt 0:00:05]} 31. Rf3 {[%emt 0:00:58]} Rc4 {[%emt 0:00:35]} 32. Rd3 {[%emt 0:00:19]} Rfc8 {[%emt 0:01:36]} 33. f4 {[%emt 0:00:20]} Qe2 {[%emt 0:01:44]} 34. Rf3 {[%emt 0:00:13]} Qe4 {[%emt 0:02:01]} 35. Bf6 {[%emt 0:00:14]} Qg6 {[%emt 0:00:19]} 36. Qe1 {[%emt 0:00:01]} Rc1 {[%emt 0:00:32]} 37. Qb4 {[%emt 0:00:10]} gxf6 {[%emt 0:00:14] Black took control after the opening.   Weighted Error Value: White=0.32/Black=0.04 (flawless) .  Mistake:       	White=2     	---        Inaccurate:     	White=3     	---        OK:         	White=8     	Black=15     Best:        	---       	Black=2      Strong:       	---       	Black=1} 0-1